Workbook

Sheet KORTTI
B1: Miia Schildt-Rusanen | E1: 3.1.1978 Heinola
B2: SUPERPESIS | E2: Runkosarja | I2: Kärkilyönnit (KL), pesänvälit | P2: Ylempi loppusarja | U2: Alempi loppusarja | Z2: Arvo-ottelut ja mitalit | AF2: Runkosarjan jälkeen
B3: Vuosi | C3: Sija | D3: Seura | E3: OTT | F3: KUN | G3: LÖI | H3: TOI | I3: KL | J3: 0 > 1 | K3: 1 > 2 | L3: 2 > 3 | M3: 3 > k | N3: KL-% | P3: OTT | Q3: KUN | R3: LÖI | S3: TOI | T3: KL | U3: OTT | V3: KUN | W3: LÖI | X3: TOI | Y3: KL | Z3: IL | AA3: LL | AB3: Halli | AC3: K | AD3: H | AE3: P
B4: 1995 | D4: HMP | F4: ykköspesis
B5: 1996
B6: 1997
B7: 1998 | D7: LMV | F7: suomensarja
B8: 1999 | D8: LMV | F8: suomensarja
B9: 2000 | D9: KJK-Pesis | F9: ykköspesis
B10: 2001 | D10: KJK-Pesis 2 | F10: suomensarja
B11: 2001 | D11: KJK-Pesis | F11: ykköspesis
B12: 2002 | D12: KJK-Pesis | F12: suomensarja
B13: 2003 | D13: KyPe | F13: ykköspesis
B14: 2004 | D14: KyPe | F14: ykköspesis
B15: 2005 | D15: HP | F15: ykköspesis | U15: 6 | V15: 1 | W15: 1 | X15: 4 | Y15: 19 | AF15: karsintasarja
B16: 2006 | C16: 9. | D16: HP | E16: 20 | F16: 0 | G16: 10 | H16: 7 | I16: 32 | J16: 7 | K16: 6 | L16: 9 | M16: =PRODUCT(F16+G16) -> 10 | N16: 34.0 % | O16: =PRODUCT(I16/N16) -> 94.11764706
B17: 2007 | D17: LMV | F17: suomensarja
B18: 2008 | D18: KyPe | F18: ykköspesis
B19: 2009 | D19: KPL | F19: ykköspesis
B20: ****
B21: 2017 | D21: LMV | F21: suomensarja
B22: 2018 | D22: LMV | F22: suomensarja
B23: 2019 | D23: LMV | F23: suomensarja
B24: Yhteensä | E24: =SUM(E9:E19) -> 20 | F24: 0 | G24: 10 | H24: 7 | I24: 32 | J24: 7 | K24: 6 | L24: 9 | M24: 10 | N24: =PRODUCT(I24/O24) -> 34.0 % | O24: =SUM(O9:O19) -> 94.11764706 | P24: 0 | Q24: 0 | R24: 0 | S24: 0 | T24: 0 | U24: 6 | V24: 1 | W24: 1 | X24: 4 | Y24: 19 | Z24: 0 | AA24: 0 | AB24: 0 | AC24: 0 | AD24: 0 | AE24: 0
B25: Pesispörssi | D25: =SUM(F24:H24)+((I24-F24-G24)/3)+(E24/3)+(Z24*25)+(AA24*25)+(AB24*10)+(AC24*25)+(AD24*20)+(AE24*15) -> 31.0
B27: URA SUPERISSA | E27: OTT | F27: KUN | G27: LÖI | H27: TOI | I27: KL | K27: ka/L | L27: ka/T | M27: ka/KL | N27: K - % | P27: ENSIMMÄISET
B28: Runkosarja | E28: =PRODUCT(E24) -> 20 | F28: =PRODUCT(F24) -> 0 | G28: =PRODUCT(G24) -> 10 | H28: =PRODUCT(H24) -> 7 | I28: =PRODUCT(I24) -> 32 | K28: =PRODUCT((F28+G28)/E28) -> 0.50 | L28: =PRODUCT(H28/E28) -> 0.35 | M28: =PRODUCT(I28/E28) -> 1.60 | N28: =PRODUCT(N24) -> 34.0 % | O28: =PRODUCT(O24) -> 94.11764706 | P28: Ottelu | S28: 16.08. 2005 PeTo-Jussit - HP 1-0 (1-1, 6-0) | AD28: 1. ottelu | AF28: 27 v 7 kk 13 pv
B29: Ylempi loppusarja | P29: Lyöty juoksu | S29: 24.08. 2005 HP - Turku-Pesis 1-0 (4-4, 4-2) | AD29: 3. ottelu | AF29: 27 v 7 kk 21 pv
B30: Alempi loppusarja | E30: =PRODUCT(U24) -> 6 | F30: =PRODUCT(V24) -> 1 | G30: =PRODUCT(W24) -> 1 | H30: =PRODUCT(X24) -> 4 | I30: =PRODUCT(Y24) -> 19 | K30: =PRODUCT((F30+G30)/E30) -> 0.33 | L30: =PRODUCT(H30/E30) -> 0.67 | M30: =PRODUCT(I30/E30) -> 3.17 | N30: =PRODUCT(I30/O30) -> 47.5 % | O30: 40 | P30: Tuotu juoksu | S30: 24.08. 2005 HP - Turku-Pesis 1-0 (4-4, 4-2) | AD30: 3. ottelu | AF30: 27 v 7 kk 21 pv
B31: KAIKKI | E31: =SUM(E28:E30) -> 26 | F31: =SUM(F28:F30) -> 1 | G31: =SUM(G28:G30) -> 11 | H31: =SUM(H28:H30) -> 11 | I31: =SUM(I28:I30) -> 51 | K31: =PRODUCT((F31+G31)/E31) -> 0.46 | L31: =PRODUCT(H31/E31) -> 0.42 | M31: =PRODUCT(I31/E31) -> 1.96 | N31: =PRODUCT(I31/O31) -> 38.0 % | O31: =SUM(O28:O30) -> 134.1176471 | P31: Kunnari | S31: 24.08. 2005 HP - Turku-Pesis 1-0 (4-4, 4-2) | AD31: 3. ottelu | AF31: 27 v 7 kk 21 pv
B33: Seurat | D33: HMP = Heinolan Maila-Pojat (1936) | J33: KJK-Pesis, Koria (1978) | Q33: HP = Haminan Palloilijat (1928)
D34: LMV = Lahden Mailaveikot (1929) | J34: KyPe = Kymi-Pesis = KJK-Pesis | Q34: KPL = Kouvolan Pallonlyöjät (1931)
